bitfinex/quotes_SOLUSD_20260302
["timestamp","ask_amount","ask_price","bid_price","bid_amount"]
[1772443189450,2.57157288,84.087,84.05,23.56732048]
[1772443190876,2.57157288,84.085,84.051,0.06623004]
[1772443192133,2.57157288,84.083,84.051,0.06623004]
[1772443192556,11.89286903,84.084,84.06,11.66964329]
[1772443192952,11.89286903,84.084,84.051,0.06623004]
[1772443193757,2.57157288,84.083,84.051,0.06623004]
[1772443193952,2.57157288,84.083,84.051,11.96376843]
[1772443194152,29.73075825,84.088,84.03,0.06961385]
[1772443194153,2.57157288,84.081,84.03,0.06961385]
[1772443194354,2.57157288,84.059,84.01,11.66964329]
[1772443194554,41.62603172,84.082,84.011,0.07071597]
[1772443194555,2.57157288,84.049,84.011,0.07071597]
[1772443194943,2.57157288,84.049,84.002,41.66567462]
[1772443194944,2.57157288,84.039,84.003,0.07071597]
[1772443195139,2.57157288,84.039,84.01,11.66964329]
[1772443196256,2.57157288,84.038,84.011,11.90320315]
[1772443196446,2.57157288,84.038,84.006,11.90386942]
[1772443197842,2.57157288,84.019,83.99,11.66964329]
[1772443198032,2.57157288,84.019,83.985,11.9068872]
[1772443198238,47.5873325,84.056,83.99,11.66964329]
[1772443198239,2.57157288,84.017,83.99,11.66964329]
[1772443198755,2.57157288,84.017,83.98,23.57711796]
[1772443199155,2.57157288,84.017,83.98,11.66964329]
[1772443199541,2.57157288,84.009,83.98,11.66964329]
[1772443199751,2.57157288,84.009,83.973,11.90850568]
[1772443200144,2.57157288,84.009,83.98,11.66964329]
[1772443200343,2.57157288,84.009,83.973,11.90850568]
[1772443200344,2.57157288,84.007,83.97,11.66964329]
[1772443200546,11.66964329,84.0,83.97,11.66964329]
[1772443200844,11.66964329,84.0,83.96,0.2]
[1772443200845,2.57157288,83.989,83.96,0.2]
[1772443201956,2.57157288,83.979,83.96,0.2]
[1772443202462,2.47157288,83.977,83.94,11.66964329]
[1772443203158,2.47157288,83.959,83.93,11.66964329]
[1772443204549,2.47157288,83.959,83.93,11.68402997]
[1772443204950,11.91071726,83.958,83.93,11.68402997]
[1772443205258,2.47157288,83.957,83.93,11.68402997]
[1772443206853,14.38257388,83.956,83.93,11.68402997]
[1772443207049,2.47157288,83.956,83.93,11.68402997]
[1772443207249,14.38257388,83.956,83.93,23.59865648]
[1772443207560,2.47157288,83.965,83.94,11.68402997]
[1772443207771,2.47157288,83.965,83.93,23.59865648]
[1772443208744,2.47157288,83.959,83.93,11.68402997]
[1772443209049,11.90986613,83.964,83.909,29.79391262]
[1772443209050,2.47157288,83.949,83.92,11.68402997]
[1772443210464,2.47157288,83.949,83.92,11.22350275]
[1772443210764,2.47157288,83.949,83.92,11.68402997]
[1772443212057,2.47157288,83.947,83.921,11.91596858]
[1772443212568,2.47157288,83.947,83.92,11.68402997]
[1772443213950,2.47157288,83.945,83.92,11.68402997]
[1772443214472,2.47157288,83.945,83.914,11.91693442]
[1772443214768,2.47157288,83.945,83.91,11.68402997]
[1772443214971,2.47157288,83.945,83.885,3.69383402]
[1772443214972,2.47157288,83.939,83.894,0.29123066]
[1772443215150,2.47157288,83.939,83.9,11.68402997]
[1772443215871,2.47157288,83.909,83.87,0.29209405]
[1772443216058,2.47157288,83.909,83.88,11.68402997]
[1772443216454,3.69383402,83.943,83.88,11.68402997]
[1772443216455,2.47157288,83.907,83.88,11.68402997]
[1772443216659,2.47157288,83.899,83.87,11.68402997]
[1772443216854,2.47157288,83.899,83.873,11.92271532]
[1772443217061,2.47157288,83.899,83.87,11.68402997]
[1772443217263,2.47157288,83.899,83.862,11.92432923]
[1772443217661,2.47157288,83.899,83.87,11.68402997]
[1772443217863,2.47157288,83.899,83.86,23.60857504]
[1772443218067,2.49183904,83.897,83.86,23.60857504]
[1772443218575,2.49183904,83.897,83.87,11.68402997]
[1772443218874,2.49183904,83.897,83.86,11.68402997]
[1772443219056,2.49183904,83.897,83.87,11.68402997]
[1772443220198,2.49183904,83.895,83.87,11.68402997]
[1772443220675,2.49183904,83.895,83.874,11.92251385]
[1772443220858,2.49183904,83.895,83.87,11.68402997]
[1772443221064,2.49183904,83.895,83.867,11.92361054]
[1772443221580,2.49183904,83.889,83.86,11.68402997]
[1772443222170,2.49183904,83.889,83.852,11.92576316]
[1772443222372,2.49183904,83.887,83.852,11.92576316]
[1772443222661,2.49183904,83.887,83.86,11.68402997]
[1772443223059,11.91918857,83.899,83.871,2.45910569]
[1772443223462,11.91918857,83.899,83.87,11.68402997]
[1772443223661,11.91918857,83.899,83.863,2.45910569]
[1772443223886,11.68402997,83.89,83.853,2.45910569]
[1772443224081,11.68402997,83.88,83.846,14.38570388]
[1772443224384,11.68402997,83.88,83.841,11.92733865]
[1772443224558,11.68402997,83.87,83.841,11.92733865]
[1772443224759,11.68402997,83.88,83.841,11.92733865]
[1772443225081,2.49183904,83.879,83.841,14.38644434]
[1772443225861,2.49183904,83.879,83.842,2.45910569]
[1772443226056,2.49183904,83.879,83.85,11.68402997]
[1772443226567,11.9220773,83.878,83.843,11.92705413]
[1772443226769,2.49183904,83.869,83.84,11.68402997]
[1772443226970,2.49183904,83.869,83.841,11.92733865]
[1772443227382,2.49183904,83.869,83.841,14.38644434]
[1772443227960,2.49183904,83.869,83.842,2.45910569]
[1772443228165,2.49183904,83.894,83.86,11.68402997]
[1772443228417,2.49183904,83.894,83.861,2.45910569]
[1772443228689,2.49183904,83.892,83.86,11.68402997]
[1772443230185,2.49183904,83.889,83.86,11.68402997]
[1772443230580,2.49183904,83.889,83.85,23.61003916]
[1772443231170,2.77616218,83.899,83.861,2.45910569]
[1772443231990,2.49183904,83.899,83.87,11.68402997]
[1772443232190,3.49,85.158,83.88,14.14313566]
[1772443232191,2.49183904,83.908,83.88,14.14313566]
[1772443233295,2.49183904,83.908,83.881,11.92165091]
[1772443233498,2.49183904,83.906,83.88,11.68402997]
[1772443233682,2.49183904,83.899,83.87,11.68402997]
[1772443234380,2.49183904,83.899,83.88,11.68402997]
[1772443234576,2.49183904,83.899,83.871,2.45910569]
[1772443234797,95.2713916,83.971,83.86,11.92463629]
[1772443234798,2.49183904,83.938,83.891,2.45910569]
[1772443235011,11.91043353,83.96,83.89,11.68402997]
[1772443235012,2.49183904,83.929,83.89,11.68402997]
[1772443235174,2.49183904,83.929,83.9,11.68402997]
[1772443235519,2.49183904,83.927,83.893,11.91991118]
[1772443235884,2.49183904,83.927,83.863,3.69383402]
[1772443235885,2.49183904,83.909,83.874,11.92264587]
[1772443236594,2.49183904,83.909,83.88,11.68402997]
[1772443236782,2.49183904,83.927,83.9,11.68402997]
[1772443237182,2.49183904,83.927,83.891,2.45910569]
[1772443237897,2.77616218,83.919,83.88,11.68402997]
[1772443238201,2.77616218,83.919,83.871,2.45910569]
[1772443238202,2.49183904,83.909,83.871,2.45910569]
[1772443238381,2.49183904,83.909,83.876,11.92223486]
[1772443238576,2.49183904,83.909,83.854,14.38450077]
[1772443238875,2.49183904,83.889,83.85,11.68402997]
[1772443239786,2.49183904,83.889,83.82,11.88402997]
[1772443239787,2.77616218,83.879,83.841,11.92730681]
[1772443240790,2.77616218,83.879,83.825,29.82385867]
[1772443240791,2.49183904,83.869,83.836,11.92803348]
[1772443241102,2.49183904,83.869,83.84,11.68402997]
[1772443242095,2.49183904,83.867,83.84,11.68402997]
[1772443242482,2.49183904,83.865,83.831,11.92870432]
[1772443242879,2.49183904,83.865,83.83,11.88402997]
[1772443243184,2.49183904,83.849,83.83,0.2]
[1772443244308,11.92568388,83.853,83.83,0.2]
[1772443244604,2.49183904,83.868,83.83,23.812839]
[1772443244799,2.49183904,83.859,83.83,23.812839]
[1772443245803,2.49183904,83.857,83.83,0.2]
[1772443247086,2.49183904,83.849,83.82,11.88402997]
[1772443247301,2.49183904,83.849,83.821,11.93018455]
[1772443247602,2.5697198,83.865,83.83,11.68402997]
[1772443247786,2.5697198,83.859,83.831,11.92876143]
[1772443250195,2.5697198,83.859,83.82,0.2]
[1772443250196,2.5697198,83.849,83.82,0.2]
[1772443250391,2.5697198,83.849,83.821,11.93018455]
[1772443251013,2.5697198,83.839,83.821,11.93018455]
[1772443251205,2.5697198,83.839,83.82,0.2]
[1772443252590,12.21052381,83.849,83.82,2.75139783]
[1772443252798,2.0,99.5,83.821,2.55139783]
[1772443252799,2.5697198,83.859,83.821,2.55139783]
[1772443253387,2.5697198,83.859,83.829,2.55139783]
[1772443254515,2.5697198,83.869,83.84,14.2354278]
[1772443254693,2.5697198,83.869,83.842,11.92719639]
[1772443254896,2.5697198,83.867,83.837,11.92778471]
[1772443255310,2.5697198,83.867,83.84,11.68402997]
[1772443255499,2.5697198,83.867,83.837,11.92778471]
[1772443256203,2.5697198,83.867,83.84,11.68402997]
[1772443256515,2.5697198,83.867,83.837,11.92778471]
[1772443257015,2.5697198,83.867,83.84,11.68402997]
[1772443257322,2.5697198,83.867,83.837,14.47918254]
[1772443257817,11.92275443,84.05,83.851,2.55139783]
[1772443257818,2.5697198,83.887,83.851,2.55139783]
[1772443257990,2.5697198,83.879,83.84,11.68402997]
[1772443258195,2.5697198,83.879,83.841,2.55139783]
[1772443258917,2.5697198,83.857,83.83,11.68402997]
[1772443259709,2.85404294,83.869,83.831,2.55139783]
[1772443259910,2.5697198,83.869,83.831,2.55139783]
[1772443260601,2.5697198,83.859,83.824,11.92975758]
[1772443261898,41.73127883,83.87,83.82,0.2]
[1772443261899,2.5697198,83.848,83.82,0.2]
[1772443262101,2.5697198,83.848,83.75,47.96080624]
[1772443262102,2.5697198,83.845,83.811,2.55139783]
[1772443262515,3.69383402,83.867,83.831,2.55139783]
[1772443262700,2.5697198,83.916,83.851,2.55139783]
[1772443263041,2.5697198,83.909,83.871,2.55139783]
[1772443264095,11.91781474,83.908,83.872,11.92293017]
[1772443264317,2.5697198,83.907,83.872,11.92293017]
[1772443264517,2.5697198,83.889,83.861,11.92442726]
[1772443264825,2.5697198,83.889,83.862,2.55139783]
[1772443265425,2.5697198,83.889,83.863,11.92420972]
[1772443267532,2.5697198,83.889,83.86,11.70526115]
[1772443267903,2.5697198,83.889,83.86,14.25665898]
[1772443268721,2.5697198,83.896,83.861,11.9244941]
[1772443269411,2.5697198,83.896,83.862,2.55139783]
[1772443269609,2.5697198,83.896,83.861,11.9244941]
[1772443269610,2.5697198,83.903,83.871,2.55139783]
[1772443269906,2.5697198,83.899,83.871,2.55139783]
[1772443270112,2.5697198,83.889,83.861,11.9244941]
[1772443270298,2.5697198,83.889,83.862,2.55139783]
[1772443270503,2.5697198,83.897,83.862,2.55139783]
[1772443270705,2.5697198,83.895,83.863,11.92420972]
[1772443270910,2.5697198,83.895,83.863,14.47560755]
[1772443271326,2.5697198,83.895,83.864,2.55139783]
[1772443272907,14.27498095,83.89,83.865,11.92392535]
[1772443273108,2.5697198,83.899,83.871,2.55139783]
[1772443275122,2.5697198,83.899,83.836,47.71197154]
[1772443275123,11.70526115,83.89,83.866,11.92373375]
[1772443275420,2.3733451,83.889,83.866,11.92373375]
[1772443277815,2.3733451,83.889,83.861,11.9244941]
[1772443278021,2.3733451,83.889,83.862,2.39174276]
[1772443278328,2.47710703,83.888,83.861,11.9244941]
[1772443278522,2.47710703,83.888,83.855,11.92530825]
[1772443278727,2.47710703,83.879,83.855,11.92530825]
[1772443281321,11.9220773,83.878,83.855,11.92530825]
[1772443281626,2.47710703,83.877,83.85,14.31766161]
[1772443281829,2.47710703,83.869,83.836,2.39174276]
[1772443282015,2.47710703,83.869,83.838,2.39174276]
[1772443282215,2.47710703,83.876,83.841,2.39174276]
[1772443282532,29.80034241,83.892,83.84,11.70526115]
[1772443282533,2.47710703,83.889,83.861,2.39174276]
[1772443282731,4.37007719,83.92,83.881,2.39174276]
[1772443282932,2.47710703,83.919,83.881,2.39174276]
[1772443283432,2.47710703,83.919,83.84,4.37007719]
[1772443283725,2.76143017,83.909,83.866,2.39174276]
[1772443283927,4.37007719,83.9,83.869,11.92334881]
[1772443284117,2.47710703,83.899,83.869,11.92334881]
[1772443284309,0.28432314,83.909,83.87,4.37007719]
[1772443284514,47.63634516,83.97,83.89,11.69672518]
[1772443284515,2.47710703,83.919,83.89,11.69672518]
[1772443284711,2.47710703,83.919,83.88,11.69672518]
[1772443285811,2.47710703,83.928,83.9,11.69672518]
[1772443286025,2.47710703,83.928,83.9,23.61563397]
[1772443286329,2.47710703,83.926,83.9,23.61563397]
[1772443286825,2.47710703,83.95,83.92,11.69672518]
[1772443287206,2.47710703,83.958,83.93,11.69672518]
[1772443287612,0.1,83.96,83.94,11.69672518]
[1772443287824,0.1,83.96,83.95,11.69672518]
[1772443288019,0.1,83.96,83.94,11.69672518]
[1772443288226,0.1,83.96,83.943,11.91278147]
[1772443288915,0.1,83.96,83.943,14.30452423]
[1772443289322,0.1,83.96,83.95,11.69672518]
[1772443289519,0.1,83.98,83.952,2.39174276]
[1772443289820,0.1,83.98,83.961,2.39174276]
[1772443290224,0.1,83.98,83.97,11.69672518]
[1772443290631,0.1,83.98,83.952,2.39174276]
[1772443290942,0.1,83.98,83.97,11.69672518]
[1772443291238,0.38432314,84.0,83.971,2.39174276]
[1772443291539,0.1,84.0,83.971,2.39174276]
[1772443291716,2.86143017,84.0,83.971,14.30061518]
[1772443291916,2.86143017,84.0,83.97,11.69672518]
[1772443291917,2.47710703,83.999,83.97,11.69672518]
[1772443292727,2.47710703,83.999,83.961,2.39174276]
[1772443293135,11.69672518,83.97,83.93,11.69672518]
[1772443293339,0.28432314,83.988,83.93,11.69672518]
[1772443293340,2.76143017,83.959,83.93,11.69672518]
[1772443293543,2.76143017,83.959,83.93,2.39174276]
[1772443293736,2.47710703,83.957,83.93,2.39174276]
[1772443293924,2.47710703,83.957,83.931,11.91454885]
[1772443294125,2.47710703,83.957,83.93,2.39174276]
[1772443294328,2.47710703,83.957,83.922,11.9158266]
[1772443294529,2.47710703,83.957,83.923,2.39174276]
[1772443296041,2.47710703,83.969,83.941,2.39174276]
[1772443297239,14.38640581,83.968,83.941,2.39174276]
[1772443297543,2.47710703,83.967,83.933,2.39174276]
[1772443297731,2.47710703,83.967,83.934,2.39174276]
[1772443298747,2.47710703,83.992,83.96,14.08846794]
[1772443298949,0.1,84.0,83.951,2.39174276]
[1772443298950,2.47710703,83.989,83.951,2.39174276]
[1772443299327,2.47710703,83.979,83.951,2.39174276]
[1772443299646,2.47710703,83.959,83.931,14.30629161]
[1772443300025,2.47710703,83.959,83.932,2.39174276]
[1772443302125,2.47710703,83.959,83.933,11.91426494]
[1772443302750,2.47710703,83.949,83.921,2.39174276]
[1772443302943,29.77341363,83.968,83.923,2.39174276]
[1772443302944,2.76143017,83.959,83.923,2.39174276]
[1772443303146,2.76143017,83.959,83.93,11.69672518]
[1772443303334,2.76143017,83.959,83.923,2.39174276]
[1772443303650,2.47710703,83.959,83.923,2.39174276]
[1772443304538,2.76143017,83.969,83.931,2.39174276]
[1772443304740,0.14216157,83.959,83.931,2.39174276]
[1772443305655,2.47710703,83.961,83.931,2.39174276]
[1772443306459,0.14216157,83.988,83.941,2.39174276]
[1772443306633,2.47710703,83.979,83.941,2.39174276]
[1772443307233,2.47710703,83.979,83.951,2.50578832]
[1772443308845,2.521393,83.977,83.951,2.50578832]
[1772443309362,2.521393,83.977,83.952,11.91156851]
[1772443309566,2.521393,83.977,83.952,14.41735683]
[1772443309950,11.90718504,83.983,83.953,2.50578832]
[1772443311472,2.521393,83.983,83.955,2.50578832]
[1772443311640,2.521393,83.969,83.939,2.50578832]
[1772443311960,11.69672518,83.97,83.943,11.91283963]
[1772443312253,2.521393,83.994,83.961,0.47978651]
[1772443312754,2.521393,83.994,83.96,11.69672518]
[1772443312965,3.69383402,84.019,83.981,2.50578832]
[1772443312966,0.1,84.0,83.981,2.50578832]
[1772443313662,0.1,84.0,83.982,11.90731347]
[1772443314356,0.1,84.0,83.982,14.41310179]
[1772443314554,29.75142046,84.03,83.982,14.41310179]
[1772443314555,1.01917048,84.047,83.991,2.50578832]
[1772443314777,11.89854375,84.044,84.01,11.69672518]
[1772443314950,11.69672518,84.04,84.01,11.69672518]
[1772443315152,2.521393,84.039,84.01,11.69672518]
[1772443315355,2.521393,84.046,84.02,11.69672518]
[1772443315564,2.521393,84.046,84.021,11.90178645]
[1772443315769,2.521393,84.046,84.016,11.90237249]
[1772443315985,2.521393,84.045,84.02,11.69672518]
[1772443316160,2.521393,84.045,84.016,11.90237249]
[1772443316365,2.521393,84.045,84.02,11.69672518]
[1772443316874,29.73947335,84.064,84.016,11.90237249]
[1772443316875,2.521393,84.066,84.022,2.50578832]
[1772443317082,2.521393,84.059,84.022,2.50578832]
[1772443317468,2.521393,84.059,84.023,11.90150315]
[1772443317673,2.521393,84.059,84.03,11.69672518]
[1772443317980,2.621393,84.07,84.031,2.50578832]
[1772443318163,2.521393,84.069,84.031,2.50578832]
[1772443318858,2.521393,84.068,84.031,2.50578832]
[1772443319055,0.1,84.07,84.041,2.50578832]
[1772443319265,2.621393,84.07,84.041,2.50578832]
[1772443319474,2.621393,84.07,84.042,11.89881249]
[1772443319775,2.521393,84.068,84.03,23.59712999]
[1772443320355,2.521393,84.068,83.994,3.69383402]
[1772443320356,2.521393,84.049,84.02,11.69672518]
[1772443320562,2.521393,84.039,84.0,11.69672518]
[1772443320780,2.521393,84.039,84.0,26.10721418]
[1772443320991,11.69672518,84.04,84.0,26.10721418]
[1772443320992,2.521393,84.029,84.0,23.60142586]
[1772443321160,2.521393,84.029,84.01,11.69672518]
[1772443321359,2.521393,84.029,84.001,2.50578832]
[1772443321570,2.521393,84.061,84.011,2.50578832]
[1772443321762,2.521393,84.057,84.03,11.69672518]
[1772443322060,2.521393,84.039,84.003,2.50578832]
[1772443322260,2.521393,84.039,84.002,11.90447846]
[1772443322261,2.521393,84.039,84.011,2.50578832]
[1772443322466,2.521393,84.049,84.02,11.69672518]
[1772443322668,11.69672518,84.04,84.01,2.50578832]
[1772443322885,2.521393,84.039,84.002,44.17146294]
[1772443323085,11.69672518,84.05,84.02,11.69672518]
[1772443323262,2.521393,84.049,84.011,2.50578832]
[1772443323581,2.521393,84.049,84.021,11.90178645]
[1772443324469,2.521393,84.049,83.983,47.62845863]
[1772443324470,2.521393,84.039,84.0,11.69672518]
[1772443324680,2.521393,84.029,83.99,23.60284812]
[1772443325173,2.521393,84.029,83.991,2.50578832]
[1772443326037,2.521393,84.019,83.981,11.90745525]
[1772443326167,2.521393,84.009,83.981,11.90745525]
[1772443328376,2.521393,84.009,83.975,2.50578832]
[1772443328894,2.521393,84.007,83.975,2.50578832]
[1772443329689,11.6718215,84.0,83.961,2.50578832]
[1772443329892,0.28432314,84.006,83.971,2.50578832]
[1772443330392,0.28432314,84.004,83.971,2.50578832]
[1772443330596,11.6718215,84.0,83.971,2.50578832]
[1772443330882,0.28432314,84.004,83.971,2.50578832]
[1772443331088,2.80571614,84.004,83.971,2.50578832]
[1772443331461,2.521393,84.009,83.973,2.50578832]
[1772443332990,2.521393,84.009,83.974,11.90844785]
[1772443333176,2.521393,84.009,83.975,2.50578832]
[1772443334172,11.90362822,84.008,83.977,2.41694179]
[1772443334795,14.42496593,84.009,83.977,2.41694179]
[1772443335685,2.52346144,84.008,83.977,2.41694179]
[1772443337312,2.52346144,84.008,83.97,11.6718215]
[1772443337313,11.6718215,84.02,83.981,2.48136462]
[1772443337479,2.6777036,84.017,83.981,2.48136462]
[1772443338005,2.39338046,84.01,83.981,2.48136462]
[1772443338408,0.28432314,84.017,83.978,11.90788063]
[1772443338409,2.39338046,84.017,83.99,11.6718215]
[1772443338618,107.07208605,84.056,83.978,41.67758221]
[1772443338619,2.39338046,84.049,84.011,2.48136462]
[1772443339295,2.39338046,84.047,84.012,11.90306146]
[1772443339887,2.39338046,84.039,84.012,11.90306146]
[1772443340422,2.39338046,84.059,84.021,2.48136462]
[1772443340704,2.39338046,84.059,84.03,14.15318612]
[1772443340910,2.39338046,84.068,84.031,2.48136462]
[1772443341501,2.39338046,84.068,84.033,2.48136462]
[1772443341882,2.39338046,84.066,84.033,2.48136462]
[1772443343206,2.39338046,84.066,84.041,2.48136462]
[1772443343382,2.39338046,84.066,84.042,14.38017711]
[1772443343783,0.1,84.07,84.05,11.6718215]
[1772443343977,0.1,84.07,84.043,2.48136462]
[1772443344196,0.1,84.07,84.05,11.6718215]
[1772443344404,0.1,84.07,84.051,2.48136462]
[1772443344579,2.39338046,84.085,84.042,41.64584373]
[1772443344580,2.39338046,84.085,84.058,2.48136462]
[1772443344888,2.39338046,84.085,84.042,41.64584373]
[1772443344889,2.39338046,84.085,84.051,2.48136462]
[1772443345285,2.39338046,84.085,84.06,11.6718215]
[1772443345803,0.1,84.09,84.071,2.48136462]
[1772443346007,2.39338046,84.109,84.071,2.48136462]
[1772443346606,2.39338046,84.109,84.08,11.6718215]
[1772443346907,2.39338046,84.099,84.07,11.6718215]
[1772443347107,2.39338046,84.099,84.07,14.15318612]
[1772443347483,2.39338046,84.099,84.072,2.48136462]
[1772443348192,2.39338046,84.099,84.071,11.89470804]
[1772443348193,2.39338046,84.089,84.065,11.8954786]
[1772443348389,2.39338046,84.069,84.043,11.89856657]
[1772443348700,0.28432314,84.102,84.061,2.48136462]
[1772443348900,11.6718215,84.1,84.07,11.6718215]
[1772443349106,12.17196118,84.121,84.071,2.48136462]
[1772443349305,4.82477569,84.16,84.091,2.48136462]
[1772443349481,41.5924504,84.15,84.075,2.48136462]
[1772443349682,11.6718215,84.14,84.101,2.48136462]
[1772443349920,23.55541867,84.15,84.11,11.6718215]
[1772443350202,23.55541867,84.15,84.11,14.15318612]
[1772443350203,11.6718215,84.15,84.11,14.15318612]
[1772443350404,11.6718215,84.17,84.131,2.48136462]
[1772443350597,2.39338046,84.139,84.102,2.48136462]
[1772443350802,2.39338046,84.139,84.09,11.6718215]
[1772443350803,2.39338046,84.129,84.09,11.6718215]
[1772443351282,2.39338046,84.139,84.1,11.6718215]
[1772443351489,11.88650762,84.129,84.1,11.6718215]
[1772443351689,11.88650762,84.129,84.092,11.8916659]
[1772443351898,14.27988808,84.129,84.092,11.8916659]
[1772443352099,2.39338046,84.128,84.092,11.8916659]
[1772443352697,2.39338046,84.119,84.081,2.48136462]
[1772443353011,2.39338046,84.156,84.101,2.48136462]
[1772443353188,2.39338046,84.156,84.061,47.58414515]
[1772443353189,2.39338046,84.119,84.08,11.6718215]
[1772443353393,2.39338046,84.119,84.08,23.56519958]
[1772443353816,2.39338046,84.119,84.081,2.48136462]
[1772443354514,2.39338046,84.119,84.054,3.69383402]
[1772443354515,2.39338046,84.109,84.073,2.48136462]
[1772443354729,2.39338046,84.109,84.072,14.37585864]
[1772443354900,2.39338046,84.109,84.073,2.48136462]
[1772443356196,2.39338046,84.109,84.074,11.8942836]
[1772443356402,2.39338046,84.109,84.075,2.48136462]
[1772443356900,2.39338046,84.118,84.081,2.48136462]
[1772443357103,14.06520196,84.11,84.081,2.48136462]
[1772443357412,11.88792068,84.119,84.024,47.60541064]
[1772443357413,2.39338046,84.089,84.051,2.48136462]
[1772443357622,2.39338046,84.079,84.042,2.48136462]
[1772443358196,2.39338046,84.079,84.043,11.89867091]
[1772443358396,2.39338046,84.079,84.044,2.48136462]
[1772443358597,2.39338046,84.078,84.044,2.48136462]
[1772443360218,2.39338046,84.078,84.051,14.37883491]
[1772443361799,2.39338046,84.098,84.061,2.48136462]
[1772443362120,2.39338046,84.116,84.081,2.48136462]
[1772443362420,11.6718215,84.12,84.083,2.48136462]
[1772443362624,11.88735373,84.124,84.091,2.48136462]
[1772443362920,11.6718215,84.12,84.091,2.48136462]
[1772443363415,2.39338046,84.119,84.082,41.62603172]
[1772443363717,2.39338046,84.119,84.083,2.48136462]
[1772443364719,106.94364918,84.157,84.052,47.58931609]
[1772443364720,2.39338046,84.126,84.091,2.48136462]
[1772443365014,14.06520196,84.12,84.091,2.48136462]
[1772443365197,2.39338046,84.119,84.091,2.48136462]
[1772443365617,11.6718215,84.11,84.076,11.89400066]
[1772443365911,11.6718215,84.11,84.043,47.59461735]
[1772443365912,14.06520196,84.1,84.064,2.48136462]
[1772443366114,2.39338046,84.099,84.06,11.6718215]
[1772443366519,2.39338046,84.099,84.06,14.15318612]
[1772443367098,2.39338046,84.089,84.056,11.89678219]
[1772443368003,2.39338046,84.089,84.057,2.51423806]
[1772443368416,2.41335433,84.079,84.056,11.89678219]
[1772443368610,2.41335433,84.089,84.057,2.51423806]
[1772443369211,14.30565763,84.088,84.058,11.89654762]
[1772443369718,2.41335433,84.087,84.058,11.89654762]
[1772443372603,11.89258616,84.086,84.057,2.51423806]
[1772443372824,2.41335433,84.085,84.057,2.51423806]
[1772443373224,2.41335433,84.085,84.058,2.51423806]
[1772443373928,11.89258616,84.086,84.058,2.51423806]
[1772443373929,2.41335433,84.125,84.058,2.51423806]
[1772443374231,2.41335433,84.133,84.101,2.51423806]
[1772443374609,14.2980861,84.142,84.111,11.88905137]
[1772443374832,11.88473177,84.142,84.111,11.88905137]
[1772443375004,11.6718215,84.14,84.111,11.88905137]
[1772443375205,2.41335433,84.139,84.111,11.88905137]
[1772443375406,2.41335433,84.139,84.108,2.51423806]
[1772443375624,2.41335433,84.139,84.1,11.6718215]
[1772443375824,2.41335433,84.139,84.101,11.89044507]
[1772443376227,2.41335433,84.139,84.096,2.51423806]
[1772443376228,2.41335433,84.129,84.093,11.89147437]
[1772443376422,2.41335433,84.129,84.1,11.6718215]
[1772443376943,2.41335433,84.129,84.101,2.51423806]
[1772443377319,2.41335433,84.127,84.1,11.89057666]
[1772443377641,2.41335433,84.178,84.123,2.51423806]
[1772443377839,2.41335433,84.178,84.15,11.6718215]
[1772443378216,2.41335433,84.178,84.151,2.51423806]
[1772443378418,3.69383402,84.216,84.12,11.6718215]
[1772443378419,2.41335433,84.199,84.17,11.6718215]
[1772443379067,2.41335433,84.189,84.151,2.51423806]
[1772443379218,2.41335433,84.196,84.151,2.51423806]
[1772443379527,2.41335433,84.196,84.16,11.6718215]
[1772443379734,2.41335433,84.196,84.16,14.18605956]
[1772443379928,2.41335433,84.196,84.161,2.51423806]
[1772443380313,2.41335433,84.189,84.15,11.6718215]
[1772443380518,2.41335433,84.159,84.124,2.51423806]
[1772443380951,11.6718215,84.17,84.13,11.6718215]
[1772443381120,2.41335433,84.178,84.141,2.51423806]
[1772443382044,2.41335433,84.169,84.14,11.6718215]
[1772443382430,2.41335433,84.178,84.141,2.51423806]
[1772443382636,2.41335433,84.169,84.14,11.6718215]
[1772443382933,2.41335433,84.169,84.14,23.55672028]
[1772443383139,11.8809999,84.168,84.14,23.55672028]
[1772443383442,11.8809999,84.168,84.12,11.6718215]
[1772443383443,2.41335433,84.159,84.12,11.6718215]
[1772443383645,2.41335433,84.159,84.122,11.88743706]
[1772443383821,2.41335433,84.149,84.113,2.51423806]
[1772443384019,2.41335433,84.149,84.12,11.6718215]
[1772443384235,2.41335433,84.149,84.114,11.88862733]
[1772443384441,2.41335433,84.149,84.11,11.6718215]
[1772443384634,2.41335433,84.139,84.1,23.56232839]
[1772443384949,2.41335433,84.137,84.1,23.56232839]
[1772443385126,2.41335433,84.137,84.1,11.6718215]
[1772443385646,2.41335433,84.109,84.08,11.6718215]
[1772443385946,2.41335433,84.099,84.07,11.6718215]
[1772443386239,2.41335433,84.129,84.091,2.51423806]
[1772443386444,2.41335433,84.149,84.11,11.6718215]
[1772443386634,2.41335433,84.149,84.11,11.63384815]
[1772443387058,2.41335433,84.119,84.08,11.63384815]
[1772443387245,2.41335433,84.119,84.081,2.51423806]
[1772443387556,2.41335433,84.119,84.079,41.62751696]
[1772443387557,2.41335433,84.129,84.1,11.63384815]